[Event "ZMDI Open 2018"]
[Site "Dresden"]
[Date "2018.08.02"]
[Round "1.6"]
[White "Khenkin, Igor"]
[Black "Knaak, Joachim"]
[Result "1-0"]
[ECO "A06"]
[WhiteElo "2566"]
[BlackElo "2154"]
[Annotator "ChessBase"]
[PlyCount "43"]
[EventDate "2018.08.04"]
[EventType "swiss"]
[EventCountry "GER"]
[SourceTitle "playchess.com"]
[Source "ChessBase"]
[SourceQuality "1"]
[TimeControl "40/5400+30:1800+30"]

1. d4 {[%emt 1:30:28]} d5 {[%emt 1:30:19]} 2. c4 {[%emt 1:30:56]} c6 {[%emt 1:30:35]} 3. e3 {[%emt 1:30:47]} Nf6 {[%emt 1:30:31]} 4. Bd3 {[%emt 1:31:14]} e6 {[%emt 1:30:30]} 5. Nf3 {[%emt 1:31:38]} Bd6 {[%emt 1:30:10]} 6. b3 {[%emt 1:31:39]} Nbd7 {[%emt 1:29:53]} 7. Bb2 {[%emt 1:31:59]} b6 {[%emt 1:22:51]} 8. O-O {[%emt 1:30:26]} Qc7 {[%emt 1:20:52]} 9. Nc3 {[%emt 1:28:50]} Bb7 {[%emt 1:17:24]} 10. Rc1 {[%emt 1:07:28]} a6 {[%emt 1:12:05]} 11. cxd5 {[%emt 1:04:17]} exd5 {[%emt 1:10:10]} 12. e4 {[%emt 1:04:39]} dxe4 {[%emt 1:07:33]} 13. Nxe4 {[%emt 1:05:05]} O-O {[%emt 0:52:16]} 14. Ne5 {[%emt 0:47:11]} Bxe5 {[%emt 0:42:17]} 15. dxe5 {[%emt 0:47:28]} Nxe4 {[%emt 0:41:49]} 16. Bxe4 {[%emt 0:47:43]} Nc5 {[%emt 0:41:19]} 17. Bxh7+ {[%emt 0:25:06]} Kxh7 {[%emt 0:41:47]} 18. Qh5+ {[%emt 0:25:35]} Kg8 {[%emt 0:42:16]} 19. Rc4 {[%emt 0:26:02]} g6 {[%emt 0:20:56]} 20. Qh6 {[%emt 0:26:26]} f5 {[%emt 0:21:02]} 21. e6 {[%emt 0:26:04]} Qh7 {[%emt 0:15:09]} 22. Qxh7+ {[%emt 0:26:28]} 1-0

[Event "ZMDI Open 2018"]
[Site "Dresden"]
[Date "2018.08.04"]
[Round "3.4"]
[White "Souleidis, Georgios"]
[Black "Heimann, Andreas"]
[Result "1/2-1/2"]
[ECO "B13"]
[WhiteElo "2429"]
[BlackElo "2590"]
[Annotator "ChessBase"]
[PlyCount "108"]
[EventDate "2018.08.04"]
[EventType "swiss"]
[EventCountry "GER"]
[SourceTitle "playchess.com"]
[Source "ChessBase"]
[SourceQuality "1"]
[TimeControl "40/5400+30:1800+30"]

1. e4 {[%emt 1:30:12]} c6 {[%emt 1:30:24]} 2. d4 {[%emt 1:26:25]} d5 {[%emt 1:30:47]} 3. exd5 {[%emt 1:26:45]} cxd5 {[%emt 1:31:11]} 4. c4 {[%emt 1:26:43]} Nf6 {[%emt 1:31:24]} 5. Nc3 {[%emt 1:27:02]} Nc6 {[%emt 1:31:48]} 6. Bf4 {[%emt 1:26:10]} e6 {[%emt 1:27:54]} 7. c5 {[%emt 1:26:29]} Be7 {[%emt 1:25:48]} 8. Bb5 {[%emt 1:26:53]} O-O {[%emt 1:16:18]} 9. Nf3 {[%emt 1:27:06]} Ne4 {[%emt 1:08:57]} 10. O-O {[%emt 1:25:13]} Bd7 {[%emt 1:01:05]} 11. Bxc6 {[%emt 1:05:28]} Nxc3 {[%emt 0:57:19]} 12. Qc2 {[%emt 1:02:10]} bxc6 {[%emt 0:48:59]} 13. Qxc3 {[%emt 0:59:39]} f6 {[%emt 0:49:24]} 14. b4 {[%emt 0:55:46]} Rf7 {[%emt 0:37:14]} 15. a4 {[%emt 0:54:51]} a6 {[%emt 0:37:14]} 16. Rfe1 {[%emt 0:50:17]} Qc8 {[%emt 0:31:03]} 17. Nd2 {[%emt 0:46:24]} Bd8 {[%emt 0:29:36]} 18. Rab1 {[%emt 0:38:36]} Bc7 {[%emt 0:24:06]} 19. Bd6 {[%emt 0:38:55]} Qb8 {[%emt 0:22:28]} 20. Bxc7 {[%emt 0:29:04]} Qxc7 {[%emt 0:22:56]} 21. Nf3 {[%emt 0:25:12]} Re7 {[%emt 0:23:04]} 22. Re3 {[%emt 0:24:21]} Rb8 {[%emt 0:22:56]} 23. h3 {[%emt 0:21:33]} Be8 {[%emt 0:21:57]} 24. Qe1 {[%emt 0:19:35]} Bg6 {[%emt 0:20:06]} 25. Rb2 {[%emt 0:19:43]} Rbe8 {[%emt 0:20:28]} 26. Qf1 {[%emt 0:15:58]} Qc8 {[%emt 0:19:18]} 27. b5 {[%emt 0:15:27]} axb5 {[%emt 0:19:06]} 28. axb5 {[%emt 0:15:55]} cxb5 {[%emt 0:19:27]} 29. Qxb5 {[%emt 0:16:17]} Rc7 {[%emt 0:16:03]} 30. Qb3 {[%emt 0:10:11]} Bf7 {[%emt 0:16:12]} 31. Qb4 {[%emt 0:08:40]} h6 {[%emt 0:13:46]} 32. Rb1 {[%emt 0:07:37]} Rce7 {[%emt 0:12:39]} 33. Qc3 {[%emt 0:07:06]} Qc7 {[%emt 0:12:38]} 34. Rbe1 {[%emt 0:05:04]} Ra8 {[%emt 0:12:40]} 35. Ra1 {[%emt 0:05:02]} Ree8 {[%emt 0:11:56]} 36. Ree1 {[%emt 0:05:09]} Rxa1 {[%emt 0:08:41]} 37. Qxa1 {[%emt 0:05:33]} Bh5 {[%emt 0:07:14]} 38. Qc3 {[%emt 0:05:44]} Qf4 {[%emt 0:06:32]} 39. Qe3 {[%emt 0:05:30]} Qxe3 {[%emt 0:05:52]} 40. fxe3 {[%emt 0:05:52]} Bxf3 {[%emt 0:02:56]} 41. gxf3 {[%emt 0:05:18]} Kf7 {[%emt 0:27:09]} 42. Rb1 {[%emt 0:33:17]} f5 {[%emt 0:17:42]} 43. Rb7+ {[%emt 0:33:31]} Kf6 {[%emt 0:18:08]} 44. h4 {[%emt 0:28:28]} g5 {[%emt 0:13:06]} 45. hxg5+ {[%emt 0:13:35]} hxg5 {[%emt 0:13:35]} 46. Kf2 {[%emt 0:26:14]} Ra8 {[%emt 0:13:51]} 47. Ke2 {[%emt 0:21:08]} Ra2+ {[%emt 0:13:50]} 48. Kd3 {[%emt 0:19:47]} g4 {[%emt 0:13:50]} 49. fxg4 {[%emt 0:20:14]} fxg4 {[%emt 0:14:15]} 50. Rb8 {[%emt 0:19:42]} g3 {[%emt 0:13:35]} 51. Rg8 {[%emt 0:20:04]} g2 {[%emt 0:14:02]} 52. c6 {[%emt 0:18:47]} Ra3+ {[%emt 0:13:14]} 53. Ke2 {[%emt 0:17:55]} Rc3 {[%emt 0:13:37]} 54. Rxg2 {[%emt 0:17:50]} Rxc6 {[%emt 0:14:02]} 1/2-1/2

[Event "ZMDI Open 2018"]
[Site "Dresden"]
[Date "2018.08.04"]
[Round "3.5"]
[White "Popovic, Dusan"]
[Black "Parvanyan, Ashot"]
[Result "0-1"]
[ECO "C06"]
[WhiteElo "2518"]
[BlackElo "2430"]
[Annotator "ChessBase"]
[PlyCount "68"]
[EventDate "2018.08.04"]
[EventType "swiss"]
[EventCountry "GER"]
[SourceTitle "playchess.com"]
[Source "ChessBase"]
[SourceQuality "1"]
[TimeControl "40/5400+30:1800+30"]

1. e4 {[%emt 1:30:26]} e6 {[%emt 1:30:15]} 2. d4 {[%emt 1:30:39]} d5 {[%emt 1:30:37]} 3. Nd2 {[%emt 1:31:03]} Nf6 {[%emt 1:30:47]} 4. e5 {[%emt 1:31:22]} Nfd7 {[%emt 1:31:10]} 5. Bd3 {[%emt 1:31:47]} c5 {[%emt 1:31:15]} 6. c3 {[%emt 1:32:12]} Nc6 {[%emt 1:31:34]} 7. Ngf3 {[%emt 1:32:22]} g6 {[%emt 1:31:15]} 8. h4 {[%emt 1:31:53]} Qb6 {[%emt 1:30:55]} 9. h5 {[%emt 1:30:41]} Rg8 {[%emt 1:31:00]} 10. Qa4 {[%emt 1:10:14]} Be7 {[%emt 1:22:53]} 11. hxg6 {[%emt 0:42:17]} hxg6 {[%emt 1:23:15]} 12. Bb5 {[%emt 0:30:52]} a6 {[%emt 1:17:35]} 13. Bxc6 {[%emt 0:26:05]} bxc6 {[%emt 1:16:14]} 14. Nb3 {[%emt 0:23:06]} c4 {[%emt 0:53:00]} 15. Nbd2 {[%emt 0:23:30]} c5 {[%emt 0:53:22]} 16. Qc2 {[%emt 0:21:25]} cxd4 {[%emt 0:46:50]} 17. cxd4 {[%emt 0:21:44]} Nb8 {[%emt 0:47:16]} 18. b3 {[%emt 0:20:50]} Nc6 {[%emt 0:42:00]} 19. bxc4 {[%emt 0:20:26]} Nxd4 {[%emt 0:38:00]} 20. Nxd4 {[%emt 0:20:51]} Qxd4 {[%emt 0:38:25]} 21. Bb2 {[%emt 0:21:17]} Qc5 {[%emt 0:37:52]} 22. Rh3 {[%emt 0:16:46]} Bb7 {[%emt 0:27:19]} 23. Ba3 {[%emt 0:12:13]} Qc7 {[%emt 0:25:36]} 24. Qb2 {[%emt 0:03:43]} Bxa3 {[%emt 0:22:58]} 25. Rxa3 {[%emt 0:04:09]} Rh8 {[%emt 0:20:50]} 26. O-O-O {[%emt 0:00:51]} dxc4 {[%emt 0:18:58]} 27. Rc3 {[%emt 0:00:39]} Bd5 {[%emt 0:18:13]} 28. Qa3 {[%emt 0:00:39]} Rc8 {[%emt 0:11:54]} 29. f4 {[%emt 0:00:21]} Qc5 {[%emt 0:09:04]} 30. Qxa6 {[%emt 0:00:07]} Ra8 {[%emt 0:08:26]} 31. Qd6 {[%emt 0:00:06]} Qb5 {[%emt 0:07:39]} 32. Nb1 {[%emt 0:00:06]} Rb8 {[%emt 0:06:35]} 33. Kd2 {[%emt 0:00:14]} Rd8 {[%emt 0:06:44]} 34. Qc7 {[%emt 0:00:05]} Be4+ {[%emt 0:05:28]} 0-1

[Event "ZMDI Open 2018"]
[Site "Dresden"]
[Date "2018.08.04"]
[Round "4.5"]
[White "Kovchan, Alexander"]
[Black "Souleidis, Georgios"]
[Result "1/2-1/2"]
[ECO "C70"]
[WhiteElo "2566"]
[BlackElo "2429"]
[Annotator "ChessBase"]
[PlyCount "83"]
[EventDate "2018.08.04"]
[EventType "swiss"]
[EventCountry "GER"]
[SourceTitle "playchess.com"]
[Source "ChessBase"]
[SourceQuality "1"]
[TimeControl "40/5400+30:1800+30"]

1. e4 {[%emt 1:30:26]} e5 {[%emt 1:30:16]} 2. Nf3 {[%emt 1:30:40]} Nc6 {[%emt 1:30:42]} 3. Bb5 {[%emt 1:31:00]} a6 {[%emt 1:31:06]} 4. Ba4 {[%emt 1:31:21]} b5 {[%emt 1:31:22]} 5. Bb3 {[%emt 1:31:41]} Na5 {[%emt 1:31:43]} 6. d4 {[%emt 1:25:06]} exd4 {[%emt 1:30:50]} 7. Qxd4 {[%emt 1:24:39]} Bb7 {[%emt 1:25:47]} 8. Bg5 {[%emt 0:58:57]} f6 {[%emt 1:15:33]} 9. Bd2 {[%emt 0:50:22]} c5 {[%emt 1:06:52]} 10. Qc3 {[%emt 0:50:27]} c4 {[%emt 0:56:10]} 11. Qxa5 {[%emt 0:50:42]} Qxa5 {[%emt 0:56:36]} 12. Bxa5 {[%emt 0:51:06]} cxb3 {[%emt 0:56:47]} 13. axb3 {[%emt 0:51:29]} Bxe4 {[%emt 0:57:10]} 14. c4 {[%emt 0:34:39]} Ne7 {[%emt 0:47:25]} 15. Nbd2 {[%emt 0:34:04]} Bb7 {[%emt 0:41:29]} 16. O-O {[%emt 0:28:22]} Nc6 {[%emt 0:41:55]} 17. Bb6 {[%emt 0:28:26]} Kf7 {[%emt 0:36:39]} 18. Rfd1 {[%emt 0:28:39]} Nb4 {[%emt 0:22:45]} 19. Nf1 {[%emt 0:26:05]} Bxf3 {[%emt 0:17:44]} 20. gxf3 {[%emt 0:26:17]} Rb8 {[%emt 0:17:51]} 21. Ba5 {[%emt 0:17:10]} bxc4 {[%emt 0:16:57]} 22. bxc4 {[%emt 0:17:23]} Rb7 {[%emt 0:14:02]} 23. Bxb4 {[%emt 0:16:16]} Bxb4 {[%emt 0:14:29]} 24. Rxa6 {[%emt 0:16:38]} Rc8 {[%emt 0:13:57]} 25. b3 {[%emt 0:16:12]} d6 {[%emt 0:12:53]} 26. Rd3 {[%emt 0:15:54]} Re8 {[%emt 0:11:49]} 27. Ng3 {[%emt 0:11:06]} Re1+ {[%emt 0:11:26]} 28. Kg2 {[%emt 0:11:34]} Rb1 {[%emt 0:10:56]} 29. Ne4 {[%emt 0:07:52]} Kg6 {[%emt 0:11:24]} 30. f4 {[%emt 0:02:12]} Bc5 {[%emt 0:10:50]} 31. Nd2 {[%emt 0:02:27]} Rb2 {[%emt 0:08:34]} 32. Rd5 {[%emt 0:01:53]} Re7 {[%emt 0:07:57]} 33. f5+ {[%emt 0:02:00]} Kh6 {[%emt 0:07:16]} 34. Kf3 {[%emt 0:01:17]} Bb4 {[%emt 0:04:58]} 35. Ne4 {[%emt 0:01:39]} Rxb3+ {[%emt 0:05:24]} 36. Kf4 {[%emt 0:02:07]} Rh3 {[%emt 0:05:23]} 37. Nxd6 {[%emt 0:01:21]} Bxd6+ {[%emt 0:01:43]} 38. Raxd6 {[%emt 0:01:49]} Rh4+ {[%emt 0:02:06]} 39. Kg3 {[%emt 0:02:13]} Rxc4 {[%emt 0:02:33]} 40. Rd4 {[%emt 0:01:30]} Rxd4 {[%emt 0:02:05]} 41. Rxd4 {[%emt 0:01:29]} Kg5 {[%emt 0:28:37]} 42. Rf4 {[%emt 0:31:30]} 1/2-1/2

[Event "ZMDI Open 2018"]
[Site "Dresden"]
[Date "2018.08.04"]
[Round "4.6"]
[White "Bruedigam, Martin"]
[Black "Vaibhav, Suri"]
[Result "1/2-1/2"]
[ECO "C07"]
[WhiteElo "2387"]
[BlackElo "2561"]
[Annotator "ChessBase"]
[PlyCount "68"]
[EventDate "2018.08.04"]
[EventType "swiss"]
[EventCountry "GER"]
[SourceTitle "playchess.com"]
[Source "ChessBase"]
[SourceQuality "1"]
[TimeControl "40/5400+30:1800+30"]

1. e4 {[%emt 1:30:23]} e6 {[%emt 1:30:10]} 2. d4 {[%emt 1:30:47]} d5 {[%emt 1:31:13]} 3. Nd2 {[%emt 1:31:13]} c5 {[%emt 1:31:00]} 4. exd5 {[%emt 1:31:38]} Qxd5 {[%emt 1:31:26]} 5. Ngf3 {[%emt 1:32:01]} cxd4 {[%emt 1:31:46]} 6. Bc4 {[%emt 1:32:24]} Qd8 {[%emt 1:31:53]} 7. O-O {[%emt 1:31:59]} Nc6 {[%emt 1:32:04]} 8. Nb3 {[%emt 1:32:06]} a6 {[%emt 1:32:09]} 9. a4 {[%emt 1:26:07]} Nf6 {[%emt 1:30:44]} 10. Qe2 {[%emt 1:26:09]} Bd6 {[%emt 1:30:03]} 11. Rd1 {[%emt 1:26:31]} e5 {[%emt 1:29:30]} 12. Nbxd4 {[%emt 1:26:45]} Nxd4 {[%emt 1:29:53]} 13. Rxd4 {[%emt 1:27:09]} Qe7 {[%emt 1:30:11]} 14. Rxd6 {[%emt 1:17:49]} Qxd6 {[%emt 1:30:35]} 15. b3 {[%emt 1:18:15]} Be6 {[%emt 1:30:59]} 16. Ba3 {[%emt 1:04:57]} Bxc4 {[%emt 1:31:22]} 17. Qxc4 {[%emt 1:03:58]} Qd5 {[%emt 1:13:10]} 18. Qxd5 {[%emt 0:44:34]} Nxd5 {[%emt 1:13:32]} 19. Nxe5 {[%emt 0:45:01]} b5 {[%emt 0:50:22]} 20. Re1 {[%emt 0:29:51]} b4 {[%emt 0:50:27]} 21. Nd3+ {[%emt 0:29:26]} Kd7 {[%emt 0:47:09]} 22. Nxb4 {[%emt 0:29:46]} Nxb4 {[%emt 0:45:23]} 23. Bxb4 {[%emt 0:30:11]} a5 {[%emt 0:41:55]} 24. Bc3 {[%emt 0:21:10]} Rhc8 {[%emt 0:32:25]} 25. Re3 {[%emt 0:21:28]} f6 {[%emt 0:25:50]} 26. h4 {[%emt 0:20:19]} Rc5 {[%emt 0:24:17]} 27. g3 {[%emt 0:16:52]} Rac8 {[%emt 0:18:25]} 28. Rd3+ {[%emt 0:16:09]} Ke6 {[%emt 0:13:47]} 29. Re3+ {[%emt 0:13:17]} Kd6 {[%emt 0:12:42]} 30. Rd3+ {[%emt 0:10:52]} Ke6 {[%emt 0:10:17]} 31. Re3+ {[%emt 0:11:17]} Kd6 {[%emt 0:04:54]} 32. Rd3+ {[%emt 0:11:42]} Ke6 33. Rd7 Rb5 34. axb5 a4 1/2-1/2

[Event "ZMDI Open 2018"]
[Site "Dresden"]
[Date "2018.08.08"]
[Round "5.5"]
[White "Gschnitzer, Oswald"]
[Black "Kovchan, Alexander"]
[Result "0-1"]
[ECO "A38"]
[WhiteElo "2389"]
[BlackElo "2566"]
[Annotator "ChessBase"]
[PlyCount "54"]
[EventDate "2018.08.04"]
[EventType "swiss"]
[EventCountry "GER"]
[SourceTitle "playchess.com"]
[Source "ChessBase"]
[SourceQuality "1"]
[TimeControl "40/5400+30:1800+30"]

1. Nf3 {[%emt 1:29:36]} c5 {[%emt 1:30:15]} 2. c4 {[%emt 1:29:45]} Nc6 {[%emt 1:30:24]} 3. Nc3 {[%emt 1:28:17]} Nf6 {[%emt 1:30:37]} 4. g3 {[%emt 1:27:19]} g6 {[%emt 1:30:24]} 5. Bg2 {[%emt 1:26:33]} Bg7 {[%emt 1:30:37]} 6. O-O {[%emt 1:26:15]} h5 {[%emt 1:29:44]} 7. a3 {[%emt 1:14:02]} d6 {[%emt 1:27:22]} 8. b4 {[%emt 1:05:54]} cxb4 {[%emt 1:20:28]} 9. axb4 {[%emt 1:06:19]} Nxb4 {[%emt 1:20:24]} 10. Qa4+ {[%emt 1:02:58]} Nc6 {[%emt 1:20:27]} 11. Nd4 {[%emt 1:02:16]} Bd7 {[%emt 1:20:20]} 12. Nxc6 {[%emt 1:02:30]} bxc6 {[%emt 1:20:38]} 13. Bxc6 {[%emt 1:02:40]} h4 {[%emt 1:19:52]} 14. Bb2 {[%emt 0:52:54]} hxg3 {[%emt 0:55:33]} 15. hxg3 {[%emt 0:52:31]} Qb6 {[%emt 0:30:09]} 16. Bxd7+ {[%emt 0:50:06]} Nxd7 {[%emt 0:28:22]} 17. Rab1 {[%emt 0:21:00]} Qb7 {[%emt 0:28:08]} 18. f3 {[%emt 0:19:23]} Kf8 {[%emt 0:27:36]} 19. Ba1 {[%emt 0:16:03]} Qc8 {[%emt 0:26:31]} 20. Nd5 {[%emt 0:10:22]} Nc5 {[%emt 0:26:22]} 21. Bxg7+ {[%emt 0:10:32]} Kxg7 {[%emt 0:26:48]} 22. Qa1+ {[%emt 0:10:57]} e5 {[%emt 0:26:27]} 23. Rf2 {[%emt 0:09:13]} Nb3 {[%emt 0:21:13]} 24. Qb2 {[%emt 0:05:44]} Nxd2 {[%emt 0:20:03]} 25. Rc1 {[%emt 0:03:52]} Nxc4 {[%emt 0:19:52]} 26. Qc3 {[%emt 0:03:27]} Qh3 {[%emt 0:19:43]} 27. Rg2 {[%emt 0:03:53]} Rac8 {[%emt 0:20:01]} 0-1

[Event "ZMDI Open 2018"]
[Site "Dresden"]
[Date "2018.08.10"]
[Round "7.4"]
[White "Kovchan, Alexander"]
[Black "Vorobiov, Evgeny E"]
[Result "*"]
[ECO "B66"]
[WhiteElo "2566"]
[BlackElo "2558"]
[Annotator "RC"]
[PlyCount "116"]
[EventDate "2018.08.04"]
[EventType "swiss"]
[EventCountry "GER"]
[SourceTitle "playchess.com"]
[Source "ChessBase"]
[SourceQuality "1"]
[TimeControl "40/5400+30:1800+30"]

1. e4 {[%emt 1:30:23]} c5 {[%emt 1:30:25]} 2. Nf3 {[%emt 1:30:46]} d6 {[%emt 1:30:53]} 3. d4 {[%emt 1:31:03]} cxd4 {[%emt 1:31:20]} 4. Nxd4 {[%emt 1:31:25]} Nf6 {[%emt 1:31:47]} 5. Nc3 {[%emt 1:31:48]} Nc6 {[%emt 1:32:13]} 6. Bg5 {[%emt 1:32:10]} e6 {[%emt 1:31:56]} 7. Qd2 {[%emt 1:31:54]} a6 {[%emt 1:32:17]} 8. O-O-O {[%emt 1:32:08]} Be7 {[%emt 1:32:03]} 9. Bxf6 {[%emt 1:32:24]} gxf6 {[%emt 1:31:00]} 10. f4 {[%emt 1:32:30]} Nxd4 {[%emt 1:22:02]} 11. Qxd4 {[%emt 1:32:48]} b5 {[%emt 1:22:26]} 12. f5 {[%emt 1:31:16]} Qc7 {[%emt 1:21:01]} 13. Be2 {[%emt 1:31:32]} h5 {[%emt 1:07:55]} 14. Bf3 {[%emt 1:31:21]} Rb8 {[%emt 1:06:08]} 15. Ne2 {[%emt 1:30:53]} e5 {[%emt 1:00:08]} 16. Qd3 {[%emt 1:30:24]} b4 {[%emt 0:59:36]} 17. h4 {[%emt 1:30:43]} a5 {[%emt 0:55:37]} 18. Ng3 {[%emt 1:28:59]} a4 {[%emt 0:53:30]} 19. Kb1 {[%emt 1:18:02]} a3 {[%emt 0:44:11]} 20. b3 {[%emt 1:02:26]} Qc6 {[%emt 0:33:07]} 21. Nxh5 {[%emt 0:44:36]} Ba6 {[%emt 0:33:14]} 22. Qd2 {[%emt 0:44:30]} Rc8 {[%emt 0:33:04]} 23. Rh3 {[%emt 0:39:33]} Qc3 {[%emt 0:28:38]} 24. Qc1 {[%emt 0:35:49]} Rg8 {[%emt 0:17:45]} 25. Rd5 {[%emt 0:21:49]} Rc5 {[%emt 0:12:59]} 26. Rd2 {[%emt 0:17:21]} Rc6 {[%emt 0:11:13]} 27. g4 {[%emt 0:13:59]} Qe3 {[%emt 0:07:25]} 28. Rg3 {[%emt 0:11:22]} Rc3 {[%emt 0:05:46]} 29. Qd1 {[%emt 0:08:25]} Qc5 {[%emt 0:02:32]} 30. g5 {[%emt 0:07:43]} fxg5 {[%emt 0:02:06]} 31. f6 {[%emt 0:07:50]} Bf8 {[%emt 0:01:05]} 32. hxg5 {[%emt 0:06:53]} Kd7 {[%emt 0:00:56]} 33. Qe1 {[%emt 0:03:21]} Kc7 {[%emt 0:00:37]} 34. Rd5 {[%emt 0:01:11]} Qe3 {[%emt 0:00:42]} 35. Qxe3 {[%emt 0:01:09]} Rxe3 {[%emt 0:01:08]} 36. Kc1 {[%emt 0:01:30]} Re1+ {[%emt 0:00:05]} 37. Rd1 {[%emt 0:01:48]} Re3 {[%emt 0:00:05]} 38. Kd2 {[%emt 0:02:00]} Rc3 {[%emt 0:00:27]} 39. Rdg1 {[%emt 0:01:52]} Bb7 {[%emt 0:00:14]} 40. Kd1 {[%emt 0:00:20]} d5 {[%emt 0:00:04]} 41. Be2 {[%emt 0:25:01]} Bc5 {[%emt 0:20:31]} 42. Rxc3 {[%emt 0:24:05]} bxc3 {[%emt 0:20:57]} 43. Rg3 {[%emt 0:24:25]} d4 {[%emt 0:18:36]} 44. Bd3 {[%emt 0:12:05]} Rh8 {[%emt 0:16:09]} 45. Rh3 {[%emt 0:12:26]} Bc8 {[%emt 0:13:59]} 46. Rh4 {[%emt 0:05:48]} Be6 {[%emt 0:11:29]} 47. Rh1 {[%emt 0:03:04]} Bf8 {[%emt 0:11:09]} 48. Bc4 {[%emt 0:02:14]} Bxc4 {[%emt 0:07:35]} 49. bxc4 {[%emt 0:02:43]} Rg8 {[%emt 0:07:51]} 50. Rg1 {[%emt 0:01:05]} Bh6 {[%emt 0:05:34]} 51. Ke2 {[%emt 0:01:28]} Rxg5 {[%emt 0:05:28]} 52. Rxg5 {[%emt 0:01:52]} Bxg5 {[%emt 0:05:54]} 53. Kd3 {[%emt 0:01:50]} Kc6 {[%emt 0:05:52]} 54. Ke2 {[%emt 0:01:50]} Kc5 {[%emt 0:04:45]} 55. Kd3 {[%emt 0:02:18]} Bh4 {[%emt 0:04:32]} 56. Ng7 {[%emt 0:02:32]} Bxf6 {[%emt 0:04:56]} 57. Nf5 {[%emt 0:02:55]} Bg5 {[%emt 0:04:50]} 58. Ng3 {[%emt 0:03:16]} Bh4 {[%emt 0:03:29]} *

[Event "ZMDI Open 2018"]
[Site "Dresden"]
[Date "2018.08.10"]
[Round "7.6"]
[White "Romanov, Evgeny"]
[Black "Parvanyan, Ashot"]
[Result "*"]
[ECO "E73"]
[WhiteElo "2628"]
[BlackElo "2430"]
[Annotator "RC"]
[PlyCount "181"]
[EventDate "2018.08.04"]
[EventType "swiss"]
[EventCountry "GER"]
[SourceTitle "playchess.com"]
[Source "ChessBase"]
[SourceQuality "1"]
[TimeControl "40/5400+30:1800+30"]

1. c4 {[%emt 1:26:30]} Nf6 {[%emt 1:29:44]} 2. Nc3 {[%emt 1:26:51]} g6 {[%emt 1:29:55]} 3. d4 {[%emt 1:27:02]} Bg7 {[%emt 1:30:18]} 4. e4 {[%emt 1:27:25]} d6 {[%emt 1:30:43]} 5. Be2 {[%emt 1:27:44]} O-O {[%emt 1:31:06]} 6. Be3 {[%emt 1:28:09]} c5 {[%emt 1:27:36]} 7. d5 {[%emt 1:28:21]} e6 {[%emt 1:27:50]} 8. Nf3 {[%emt 1:28:35]} exd5 {[%emt 1:27:53]} 9. cxd5 {[%emt 1:28:49]} Bg4 {[%emt 1:26:21]} 10. Nd2 {[%emt 1:29:06]} Bxe2 {[%emt 1:26:42]} 11. Qxe2 {[%emt 1:29:31]} Na6 {[%emt 1:25:07]} 12. O-O {[%emt 1:29:15]} Nc7 {[%emt 1:24:19]} 13. Bg5 {[%emt 1:09:05]} Qd7 {[%emt 1:19:04]} 14. h3 {[%emt 0:46:07]} h6 {[%emt 1:15:23]} 15. Bh4 {[%emt 0:44:52]} b5 {[%emt 1:13:28]} 16. Rae1 {[%emt 0:44:20]} Rfe8 {[%emt 1:10:42]} 17. Qf3 {[%emt 0:41:40]} Nh7 {[%emt 1:04:24]} 18. Bg3 {[%emt 0:42:00]} Rab8 {[%emt 0:43:24]} 19. b3 {[%emt 0:39:26]} Na6 {[%emt 0:38:51]} 20. Rc1 {[%emt 0:31:46]} Ng5 {[%emt 0:23:00]} 21. Qf4 {[%emt 0:27:48]} Rbd8 {[%emt 0:14:29]} 22. Bh4 {[%emt 0:15:44]} Nb4 {[%emt 0:12:28]} 23. Qg3 {[%emt 0:16:05]} Rc8 {[%emt 0:03:38]} 24. f4 {[%emt 0:15:00]} Nh7 {[%emt 0:03:08]} 25. a3 {[%emt 0:15:09]} Na6 {[%emt 0:03:22]} 26. Qd3 {[%emt 0:15:12]} c4 {[%emt 0:01:50]} 27. bxc4 {[%emt 0:12:53]} Nc5 {[%emt 0:00:58]} 28. Qf3 {[%emt 0:13:02]} bxc4 {[%emt 0:01:18]} 29. Ncb1 {[%emt 0:09:43]} Nf6 {[%emt 0:00:03]} 30. Rxc4 {[%emt 0:09:16]} Qb5 {[%emt 0:00:03]} 31. Bxf6 {[%emt 0:06:32]} Bxf6 {[%emt 0:00:28]} 32. e5 {[%emt 0:06:57]} Bg7 {[%emt 0:00:33]} 33. Nc3 {[%emt 0:06:20]} Qb7 {[%emt 0:00:02]} 34. Nde4 {[%emt 0:01:54]} Nxe4 {[%emt 0:00:06]} 35. Rxc8 {[%emt 0:02:23]} Rxc8 {[%emt 0:00:04]} 36. Nxe4 {[%emt 0:02:47]} dxe5 {[%emt 0:00:13]} 37. f5 {[%emt 0:03:12]} Kh8 {[%emt 0:00:04]} 38. fxg6 {[%emt 0:01:22]} fxg6 {[%emt 0:00:31]} 39. Qg4 {[%emt 0:01:37]} Rc4 {[%emt 0:00:01]} 40. Qxg6 {[%emt 0:00:29]} Qb6+ {[%emt 0:00:06]} 41. Qxb6 {[%emt 0:00:49]} axb6 {[%emt 0:00:32]} 42. Nd6 {[%emt 0:28:25]} Rd4 {[%emt 0:22:22]} 43. Rf7 {[%emt 0:22:57]} Rd1+ {[%emt 0:17:01]} 44. Kf2 {[%emt 0:22:17]} Kg8 {[%emt 0:10:01]} 45. Rb7 {[%emt 0:21:42]} Rxd5 {[%emt 0:09:51]} 46. Rxb6 {[%emt 0:17:28]} Rd2+ {[%emt 0:09:19]} 47. Kf3 {[%emt 0:17:36]} Rd3+ {[%emt 0:08:50]} 48. Kg4 {[%emt 0:16:37]} Rxa3 {[%emt 0:05:24]} 49. Nf5 {[%emt 0:16:28]} Ra7 {[%emt 0:02:29]} 50. Nxh6+ {[%emt 0:12:03]} Bxh6 {[%emt 0:02:11]} 51. Rxh6 {[%emt 0:12:30]} Ra2 {[%emt 0:00:17]} 52. g3 {[%emt 0:11:20]} Kg7 {[%emt 0:00:14]} 53. Re6 {[%emt 0:10:59]} Re2 {[%emt 0:00:38]} 54. Kf5 {[%emt 0:08:38]} Rf2+ {[%emt 0:00:07]} 55. Kg4 {[%emt 0:08:07]} Re2 {[%emt 0:00:28]} 56. h4 {[%emt 0:08:10]} Kf7 {[%emt 0:00:54]} 57. Ra6 {[%emt 0:08:26]} Re3 {[%emt 0:00:47]} 58. h5 {[%emt 0:07:36]} Rb3 {[%emt 0:00:11]} 59. Ra7+ {[%emt 0:06:00]} Kf6 {[%emt 0:00:23]} 60. Ra6+ {[%emt 0:05:09]} Kf7 {[%emt 0:00:22]} 61. Rg6 {[%emt 0:02:00]} e4 {[%emt 0:00:01]} 62. Kf4 {[%emt 0:02:18]} e3 {[%emt 0:00:03]} 63. Kf3 {[%emt 0:02:45]} Ra3 {[%emt 0:00:02]} 64. g4 {[%emt 0:02:27]} Rb3 {[%emt 0:00:08]} 65. Ke2 {[%emt 0:01:51]} Ra3 {[%emt 0:00:29]} 66. Rg5 {[%emt 0:02:11]} Kf6 {[%emt 0:00:09]} 67. Rf5+ {[%emt 0:02:26]} Kg7 {[%emt 0:00:24]} 68. Re5 {[%emt 0:02:34]} Kf6 {[%emt 0:00:05]} 69. Rxe3 {[%emt 0:01:36]} Ra5 {[%emt 0:00:02]} 70. Re8 {[%emt 0:02:00]} Ra3 {[%emt 0:00:03]} 71. Kf2 {[%emt 0:01:35]} Kg5 {[%emt 0:00:06]} 72. Rg8+ {[%emt 0:01:55]} Kh6 {[%emt 0:00:09]} 73. Rg6+ {[%emt 0:02:17]} Kh7 {[%emt 0:00:28]} 74. Rf6 {[%emt 0:02:34]} Kg7 {[%emt 0:00:27]} 75. Rf3 {[%emt 0:02:55]} Ra1 {[%emt 0:00:06]} 76. Kg3 {[%emt 0:03:13]} Rg1+ {[%emt 0:00:10]} 77. Kh4 {[%emt 0:03:30]} Ra1 {[%emt 0:00:29]} 78. Kg5 {[%emt 0:03:49]} Ra5+ {[%emt 0:00:24]} 79. Rf5 {[%emt 0:04:12]} Ra7 {[%emt 0:00:20]} 80. h6+ {[%emt 0:03:57]} Kg8 {[%emt 0:00:10]} 81. Kh5 {[%emt 0:03:33]} Ra1 {[%emt 0:00:04]} 82. Kg6 {[%emt 0:03:22]} Ra8 {[%emt 0:00:03]} 83. g5 {[%emt 0:03:26]} Kh8 {[%emt 0:00:20]} 84. Kh5 {[%emt 0:02:53]} Kg8 {[%emt 0:00:50]} 85. g6 {[%emt 0:02:54]} Ra7 {[%emt 0:00:34]} 86. Rd5 {[%emt 0:02:11]} Ra8 {[%emt 0:00:33]} 87. h7+ {[%emt 0:02:23]} Kg7 {[%emt 0:00:54]} 88. Rd7+ {[%emt 0:02:46]} Kf6 {[%emt 0:01:13]} 89. Rf7+ {[%emt 0:03:05]} Ke6 {[%emt 0:01:39]} 90. Rf1 {[%emt 0:03:19]} Ke7 {[%emt 0:01:42]} 91. Kh6 {[%emt 0:03:39]} *